[Event "FIDE Open World Rapid 2024"]
[Site "New York"]
[Date "2024.12.27"]
[Round "8.45"]
[White "Niemann, Hans Moke"]
[Black "Khanin, Semen"]
[Result "1/2-1/2"]
[ECO "C54"]
[WhiteElo "2734"]
[BlackElo "2568"]
[Annotator "TA"]
[PlyCount "90"]
[EventDate "2024.12.14"]
[EventType "swiss"]
[EventCountry "USA"]
[SourceTitle "playchess.com"]
[Source "ChessBase"]
[SourceQuality "1"]
[TimeControl "900+10"]

{[%evp 35,90,15,21,21,26,15,6,18,26,19,27,20,37,0,0,0,0,0,0,-135,-97,-74,-47,-49,-50,-319,-319,-319,-319,-314,0,0,0,-77,0,0,0,0,0,0,0,0,0,0,0,0,0,0,0,0,0,0,0,0,0,0,0]} 1. e4 {[%emt 0:00:01]} e5 {[%emt 0:00:01]} 2. Nf3 {[%emt 0:00:02]} Nc6 {[%emt 0:00:01]} 3. Bc4 {[%emt 0:00:01]} Nf6 {[%emt 0:00:02]} 4. d3 {[%emt 0:00:01]} Bc5 {[%emt 0:00:01]} 5. O-O {[%emt 0:00:04]} d6 {[%emt 0:00:02]} 6. c3 {[%emt 0:00:02]} a6 {[%emt 0:00:01]} 7. Re1 {[%emt 0:00:01]} Ba7 {[%emt 0:00:03]} 8. Nbd2 {[%emt 0:00:02]} Na5 {[%emt 0:00:14]} 9. Bb3 {[%emt 0:00:02]} Nxb3 {[%emt 0:00:03]} 10. axb3 {[%emt 0:00:01]} O-O {[%emt 0:00:10]} 11. Nf1 {[%emt 0:00:01]} h6 {[%emt 0:01:06]} 12. h3 {[%emt 0:00:03]} Nh5 {[%emt 0:00:45]} 13. d4 {[%emt 0:00:16]} Qf6 {[%emt 0:00:30]} 14. Be3 {[%emt 0:00:35]} Nf4 {[%emt 0:00:40]} 15. Ng3 {[%emt 0:00:02]} g6 {[%emt 0:01:02]} 16. Bxf4 {[%emt 0:00:39]} Qxf4 {[%emt 0:00:13]} 17. Nf5 {[%emt 0:00:02]} Bxf5 {[%emt 0:01:00]} 18. g3 {[%emt 0:00:02]} (18. exf5 e4 $15 (18... Qxf5 19. dxe5 Rad8 20. Qc1 $11)) 18... Qxe4 $1 {[%emt 0:00:02]} 19. Rxe4 {[%emt 0:00:02]} (19. dxe5 $2 Qc6 20. Ra4 dxe5 (20... Bxh3 $2 21. Rh4 $19) 21. Nxe5 Qc5 $19) 19... Bxe4 {[%emt 0:00:01]} 20. dxe5 {[%emt 0:00:02]} dxe5 {[%emt 0:00:42]} 21. Nxe5 {[%emt 0:00:05]} Rfe8 {[%emt 0:00:02]} 22. Ng4 {[%emt 0:00:40]} Kg7 {[%emt 0:01:20]} 23. Qd2 {[%emt 0:00:34]} g5 {[%emt 0:00:01]} 24. Qd7 {[%emt 0:02:33]} Rad8 {[%emt 0:00:47]} 25. Qxc7 {[%emt 0:00:32]} Rd2 {[%emt 0:01:27]} 26. Rf1 {[%emt 0:01:39]} Re6 {[%emt 0:01:18]} 27. Qa5 {[%emt 0:01:25]} (27. Nxh6 $11 Kxh6 28. Qxf7) 27... Bb6 {[%emt 0:00:22]} 28. Qb4 {[%emt 0:02:47]} Bd3 {[%emt 0:02:37]} (28... Bf3 $5 29. c4 Rc2 $17) 29. c4 $1 {[%emt 0:01:06]} Rc2 {[%emt 0:00:08]} 30. Ra1 $2 {[%emt 0:05:20][%mdl 8192]} (30. Re1 $15 a5 (30... Rxb2 $2 31. Rxe6 fxe6 32. Qc3+ Kg8 33. Qxb2 $18) 31. Rxe6 Bxf2+ (31... axb4 32. Rxb6 Be4 33. f3 $15) 32. Nxf2 axb4 33. Rb6) 30... h5 $1 $19 {[%emt 0:01:00]} (30... Rxb2 $2 31. Qc3+ f6 32. Qxb2 $18) 31. Ne3 {[%emt 0:00:16]} Bxe3 {[%emt 0:01:02]} 32. fxe3 {[%emt 0:00:01]} Rxe3 $2 {[%emt 0:00:28]} (32... Rxb2 $2 33. Qc3+ (33. Qxb7 $2 Be4 $19) 33... f6 34. Qxb2 $18) ({Black should play} 32... Be4 $1 $19 {aiming for ...Rg2+.} 33. c5 Rg2+ (33... Rxb2 $2 34. Qd4+ Kg6 35. Qxb2 $18) 34. Kh1 Rxg3+ (34... Rxb2+ $2 35. Kg1 $19) 35. Kh2 Rg2+ (35... Rxe3 $2 36. Qd4+ Kh6 37. Qxe3 $18) 36. Kh1 Re5 (36... Rxb2+ $2 37. Kg1 $19) 37. Qxe4 Rxe4 38. Kxg2 Rxe3) 33. Qd6 $11 {[%emt 0:00:02]} Kh7 {[%emt 0:00:57]} (33... Rxb2 $2 34. Qd4+ Kh7 35. Qxe3 $18) 34. Rd1 {[%emt 0:00:07] [#]} (34. Qc7 $11 {keeps the balance.} Bg6 (34... Rxb2 $2 {loses.} 35. Qxf7+ Kh6 36. Qf6+ Kh7 37. Qxb2 $18) 35. Rf1) 34... h4 {[%emt 0:01:51]} (34... Bg6 $1 $17) 35. gxh4 $11 {[%emt 0:01:07]} (35. Rxd3 $2 Re1#) 35... gxh4 {[%emt 0:00:03]} 36. Qf4 {[%emt 0:00:26]} Rg3+ {[%emt 0:00:31]} 37. Qxg3 {[%emt 0:00:03]} hxg3 {[%emt 0:00:02]} 38. Rxd3 {[%emt 0:00:01]} Rxb2 {[%emt 0:00:05]} 39. Rxg3 {[%emt 0:00:01]} f5 {[%emt 0:00:18]} 40. h4 {[%emt 0:00:11]} Kh6 {[%emt 0:00:03]} 41. Rg5 {[%emt 0:00:06]} f4 {[%emt 0:00:19]} 42. Rf5 {[%emt 0:00:06]} Rxb3 {[%emt 0:00:02]} 43. Rxf4 {[%emt 0:00:01]} a5 {[%emt 0:00:26]} 44. Kf2 {[%emt 0:00:17]} a4 {[%emt 0:00:13]} 45. c5 {[%emt 0:00:15]} Rc3 {[%emt 0:00:25]} 1/2-1/2

[Event "FIDE Open World Rapid 2024"]
[Site "New York"]
[Date "2024.12.27"]
[Round "8.46"]
[White "Tsaruk, Maksim"]
[Black "Martirosyan, Haik M."]
[Result "0-1"]
[ECO "B22"]
[WhiteElo "2424"]
[BlackElo "2656"]
[Annotator "ChessBase"]
[PlyCount "134"]
[EventDate "2024.12.14"]
[EventType "swiss"]
[EventCountry "USA"]
[SourceTitle "playchess.com"]
[Source "ChessBase"]
[SourceQuality "1"]
[TimeControl "900+10"]

1. e4 {[%emt 0:00:02]} c5 {[%emt 0:00:01]} 2. c3 {[%emt 0:00:04]} e6 {[%emt 0:00:24]} 3. d4 {[%emt 0:00:04]} d5 {[%emt 0:00:01]} 4. exd5 {[%emt 0:00:02]} Qxd5 {[%emt 0:00:03]} 5. Nf3 {[%emt 0:00:02]} Nf6 {[%emt 0:00:05]} 6. Na3 {[%emt 0:00:02]} Qd8 {[%emt 0:00:12]} 7. Nc4 {[%emt 0:00:09]} Nc6 {[%emt 0:00:50]} 8. Nce5 {[%emt 0:00:03]} cxd4 {[%emt 0:01:02]} 9. Nxc6 {[%emt 0:00:03]} bxc6 {[%emt 0:00:02]} 10. Qxd4 {[%emt 0:00:01]} Qb6 {[%emt 0:00:33]} 11. Be2 {[%emt 0:01:41]} Ba6 {[%emt 0:00:16]} 12. Qxb6 {[%emt 0:01:43]} axb6 {[%emt 0:00:02]} 13. c4 {[%emt 0:00:02]} b5 {[%emt 0:01:08]} 14. cxb5 {[%emt 0:01:22]} cxb5 {[%emt 0:00:02]} 15. a4 {[%emt 0:02:09]} Bb4+ {[%emt 0:01:29]} 16. Nd2 {[%emt 0:00:01]} bxa4 {[%emt 0:01:56]} 17. Rxa4 {[%emt 0:00:04]} Rc8 {[%emt 0:00:02]} 18. Kd1 {[%emt 0:04:08]} Bxe2+ {[%emt 0:00:19]} 19. Kxe2 {[%emt 0:00:01]} Nd5 {[%emt 0:00:04]} 20. Nc4 {[%emt 0:02:54]} O-O {[%emt 0:00:42]} 21. Ne3 {[%emt 0:00:04]} Nf4+ {[%emt 0:00:12]} 22. Kf3 {[%emt 0:00:00]} Nd3 {[%emt 0:00:16]} 23. Rd1 {[%emt 0:00:43]} Ne5+ {[%emt 0:00:12]} 24. Ke2 {[%emt 0:00:05]} Rb8 {[%emt 0:00:42]} 25. Bd2 {[%emt 0:01:02]} Bxd2 {[%emt 0:00:32]} 26. Rxd2 {[%emt 0:00:01]} Rb3 {[%emt 0:00:56]} 27. Rad4 {[%emt 0:00:27]} g5 {[%emt 0:00:45]} 28. h4 {[%emt 0:01:05]} gxh4 {[%emt 0:00:27]} 29. Rxh4 {[%emt 0:00:04]} Rfb8 {[%emt 0:00:05]} 30. Re4 {[%emt 0:00:02]} R8b5 {[%emt 0:00:35]} 31. Nd1 {[%emt 0:00:45]} Ng6 {[%emt 0:00:16]} 32. g3 {[%emt 0:00:08]} Kg7 {[%emt 0:00:18]} 33. Rd7 {[%emt 0:00:58]} Rc5 {[%emt 0:00:01]} 34. Re3 {[%emt 0:00:22]} Rb8 {[%emt 0:00:29]} 35. Rc3 {[%emt 0:00:12]} Rxb2+ {[%emt 0:00:03]} 36. Nxb2 {[%emt 0:00:03]} Rxc3 {[%emt 0:00:00]} 37. Nd3 {[%emt 0:00:03]} Kf6 {[%emt 0:00:09]} 38. Ra7 {[%emt 0:00:41]} h5 {[%emt 0:00:40]} 39. Kd2 {[%emt 0:00:00]} Rc4 {[%emt 0:00:15]} 40. Ke3 {[%emt 0:00:00]} e5 {[%emt 0:00:21]} 41. Ra6+ {[%emt 0:00:00]} Kf5 {[%emt 0:00:02]} 42. Ra7 {[%emt 0:00:00]} f6 {[%emt 0:00:32]} 43. Rh7 {[%emt 0:00:00]} h4 {[%emt 0:00:16]} 44. gxh4 {[%emt 0:00:00]} Nxh4 {[%emt 0:00:03]} 45. Rb7 {[%emt 0:00:44]} Re4+ {[%emt 0:00:12]} 46. Kd2 {[%emt 0:00:06]} Nf3+ {[%emt 0:00:01]} 47. Kd1 {[%emt 0:00:07]} Rh4 {[%emt 0:00:21]} 48. Ke2 {[%emt 0:00:16]} Nd4+ {[%emt 0:00:08]} 49. Kf1 {[%emt 0:00:01]} Ke4 {[%emt 0:00:17]} 50. Nc5+ {[%emt 0:00:23]} Kf3 {[%emt 0:00:12]} 51. Rg7 {[%emt 0:00:02]} Nf5 {[%emt 0:01:40]} 52. Rg6 {[%emt 0:00:28]} Rd4 {[%emt 0:01:32]} 53. Ke1 {[%emt 0:00:03]} Rd6 {[%emt 0:00:02]} 54. Nb3 {[%emt 0:00:02]} Kf4 {[%emt 0:00:23]} 55. Nd2 {[%emt 0:00:17]} Ra6 {[%emt 0:00:02]} 56. Ke2 {[%emt 0:00:17]} e4 {[%emt 0:00:09]} 57. Rg8 {[%emt 0:00:20]} Nd4+ {[%emt 0:00:40]} 58. Kf1 {[%emt 0:00:02]} Ra2 {[%emt 0:00:24]} 59. Nc4 {[%emt 0:00:03]} Nf3 {[%emt 0:00:36]} 60. Rf8 {[%emt 0:00:15]} Ra1+ {[%emt 0:00:47]} 61. Kg2 {[%emt 0:00:01]} Rg1+ {[%emt 0:00:05]} 62. Kh3 {[%emt 0:00:00]} Rg6 {[%emt 0:00:17]} 63. Ne3 {[%emt 0:00:12]} Ng5+ {[%emt 0:00:10]} 64. Kh2 {[%emt 0:00:03]} Kf3 {[%emt 0:00:07]} 65. Kh1 {[%emt 0:00:43]} Rh6+ {[%emt 0:00:12]} 66. Kg1 {[%emt 0:00:01]} Nh3+ {[%emt 0:00:02]} 67. Kf1 {[%emt 0:00:01]} Nxf2 {[%emt 0:00:10]} 0-1